Cogmind - Beta 16 --- EXPLORER MODE // 2025.12.12 @ 12:37:30 Player: K.K.Y. Result: Destroyed by PJ-R4G(R) with Subdweller Machine Gun Performance ------------- Evolutions (0) 0 Regions Visited (3) 600 Robots Destroyed (37) 185 Value Destroyed (754) 754 Prototype IDs (3) 60 Alien Tech Used (0) 0 Bonus (30) 30 TOTAL SCORE: 1629 Bonus ------- Follower Combat Kills 30 Cogmind --------- Core Integrity 0/250 Matter 251/300 Energy 34/100 System Corruption 0% Temperature Cool (0) Movement Core (300) Ox5 Location -10/Subcaves Parts ------- > --- POWER (1) -------- (None) > --- PROPULSION (3) --- (None) > --- UTILITY (2) ------ Small Storage Unit > --- WEAPON (2) ------- Heavy Riot Gun Slug Cannon > --- INVENTORY (8) ---- Flight Unit Machine Analyzer Sensor Array Shield Generator Light Assault Rifle Mining Laser Peak State ------------ > --- POWER ------------ Ion Engine > --- PROPULSION ------- Flight Unit Flight Unit Flight Unit > --- UTILITY ---------- Small Storage Unit Weight Redist. System > --- WEAPON ----------- Particle Gun Particle Gun > --- INVENTORY -------- Ion Engine Flight Unit Flight Unit Flight Unit Machine Analyzer Shield Generator Medium Laser Mining Laser [Rating: 12] Favorites ----------- Power Ion Engine Engine Ion Engine Propulsion Flight Unit Wheel Wheel Flight Unit Flight Unit Utility Small Storage Unit Device Weight Redist. System Storage Small Storage Unit Processor Targeting Computer Weapon Particle Gun Energy Gun Particle Gun Ballistic Gun Light Assault Rifle Ballistic Cannon Slug Cannon Special Weapon Mining Laser Build | -11 -10 -10 -10 ------- Run | Yrd Mat Min Sub Slots Evolved 1 | . 1 . . Power . | . . . . Propulsion 1 | . 1 . . Utility . | . . . . Weapon . | . . . . Parts Attached 31 | 6 11 3 11 Power 3 | 1 . . 2 Engine 3 | 1 . . 2 Core . | . . . . Reactor . | . . . . Propulsion 14 | 2 6 2 4 Treads . | . . . . Leg . | . . . . Wheel 2 | 2 . . . Hover . | . . . . Flight 12 | . 6 2 4 Utility 3 | 1 2 . . Device 1 | . 1 . . Storage 1 | . 1 . . Processor 1 | 1 . . . Hackware . | . . . . Protection . | . . . . Artifact . | . . . . Weapon 11 | 2 3 1 5 Energy Gun 8 | 2 3 1 2 Energy Cannon . | . . . . Ballistic Gun 1 | . . . 1 Ballistic Cannon 1 | . . . 1 Launcher . | . . . . Special Weapon 1 | . . . 1 Impact Weapon . | . . . . Slashing Weapon . | . . . . Piercing Weapon . | . . . . Special Melee Weapon . | . . . . Unidentified Prototypes . | . . . . Parts Lost 9 | . . . 9 Power 2 | . . . 2 Propulsion 4 | . . . 4 Utility 1 | . . . 1 Weapon 2 | . . . 2 Highest Loss Streak 5 | . . . 5 To Critical Strikes . | . . . . Average Backups 6 | 2 6 7 7 Power . | 1 . 1 . Propulsion 1 | . 2 1 . Utility 2 | . 1 3 3 Weapon 2 | . 1 2 2 Tool/Special . | . . . . Unused Backups 6 | . 3 . 3 Power 1 | . 1 . . Propulsion 1 | . 1 . . Utility 3 | . . . 3 Weapon 1 | . 1 . . Tool/Special . | . . . . Average Slot Usage (%) 92 | . 93 100 88 Engine 10 | . 12 12 8 Wheel 1 | . 5 . . Flight 33 | . 28 37 33 Device 9 | . 7 12 8 Storage 10 | . 7 12 12 Processor 1 | . 4 . . Energy Gun 22 | . 25 25 19 Peak Build Rating 12 | 6 12 12 12 Average Rating 10 | 3 9 12 10 On Entrance 7 | . 6 12 12 Avg Prop Armor Cover (%) 10 | . 13 4 . Naked Turns . | . . . . Heaviest Build 16 | 8 16 16 16 Greatest Support 20 | 20 20 18 18 Greatest Overweight (x) 1 | . 1 1 1 Average Overweight (x) . | . . . . Largest Inventory Capacity 8 | 5 8 8 8 Average Capacity 7 | 5 6 8 8 Most Carried 8 | 5 8 8 8 Average Carried 6 | 2 6 7 7 Final Capacity 8 | 5 8 8 8 Final Carried 8 | 3 8 8 6 Class Distribution -------------------- 100% | Hacker-Mutant Dominant Class ---------------- Hacker-Mutant | -10/Materials Hacker-Mutant | -10/Mines Hacker-Mutant | -10/Subcaves Resources | -11 -10 -10 -10 ----------- Run | Yrd Mat Min Sub Matter Collected 588 | 260 110 100 118 Remotely . | . . . . Salvage Created 1093 | 206 344 113 430 Parts 64 | 13 23 7 21 Haulers Intercepted 2 | . 2 . . Recyclers Shooed . | . . . . Parts Field Recycled . | . . . . Retrieved Matter . | . . . . Parts Self-Destructed . | . . . . Prevented . | . . . . Parts Restored . | . . . . Kills | -11 -10 -10 -10 ------- Run | Yrd Mat Min Sub Combat Hostiles Destroyed 22 | . 6 4 12 Guns 22 | . 6 4 12 Classes Destroyed 11 | 3 5 . 3 Worker 1 | 1 . . . Tunneler 5 | 5 . . . Hauler 2 | . 2 . . Recycler 1 | 1 . . . Mechanic 1 | . 1 . . Turret 2 | . . . 2 Watcher 3 | . 3 . . Swarmer 10 | . 4 2 4 Grunt 4 | . 2 2 . Sentry 1 | . . . 1 Subdweller 7 | . . . 7 Best Kill Streak 4 | 4 3 2 3 Combat Bots Only 3 | . 2 2 3 Max Kills in Single Turn 2 | 1 1 1 2 Gunslinging 1 | . . . 1 Exploded . | . . . . Melee . | . . . . Uniques/NPCs Destroyed . | . . . . Combat | -11 -10 -10 -10 -------- Run | Yrd Mat Min Sub Hostile Shots Fired 156 | . 16 20 120 Missed 68 | . 8 6 54 Hits 88 | . 8 14 66 Projectile 88 | . 8 14 66 Critical Strikes 1 | . . . 1 Damage Taken 867 | . 66 97 704 Core 256 | . 28 35 193 Absorbed by Shields . | . . . . Ignored by Resistances 538 | . 45 61 432 Core Remaining (%) 100 | 100 . . . Volleys Fired 112 | 12 22 13 65 Largest 2 | 2 2 2 2 Hottest 130 | 90 130 130 130 Shots Fired 210 | 24 44 22 120 Gun 197 | 24 44 22 107 Cannon 8 | . . . 8 Launcher . | . . . . Special 5 | . . . 5 Kinetic 22 | . . . 22 Thermal 178 | 24 44 22 88 Explosive . | . . . . Electromagnetic 10 | . . . 10 Robot Hit Streak 36 | 7 14 10 36 Robot Miss Streak 2 | 1 2 2 2 Penetration Max . | . . . . Secondary Targets 5 | . . 2 3 Max Gunslinging Chain 1 | . . 1 1 Shots Hit Robots 155 | 20 29 16 90 Core Hits 59 | 8 16 6 29 Critical Kills . | . . . . Critical Parts Destroyed . | . . . . Critical Strikes 8 | . 2 2 4 Burn 7 | . 2 2 3 Destroy 1 | . . . 1 Melee Attacks . | . . . . Impact . | . . . . Slashing . | . . . . Piercing . | . . . . Sneak Attacks . | . . . . Combat Hostiles . | . . . . Follow-up Attacks . | . . . . Damage Inflicted 2175 | 235 372 244 1324 Guns 2109 | 235 372 244 1258 Cannons 66 | . . . 66 Explosions . | . . . . Melee . | . . . . Ramming . | . . . . Kinetic 160 | . . . 160 Thermal 1951 | 235 372 244 1100 Explosive . | . . . . Electromagnetic 64 | . . . 64 Impact . | . . . . Slashing . | . . . . Piercing . | . . . . Highest Corruption . | . . . . Average Corruption . | . . . . Corruption Purged . | . . . . Corruption Blocked . | . . . . Overload Shots . | . . . . Overflow Damage . | . . . . Projectiles . | . . . . Explosions . | . . . . Melee . | . . . . Knockbacks 1 | . . . 1 Impact . | . . . . Kinetic 1 | . . . 1 Secondary . | . . . . Self-Inflicted Damage . | . . . . Shots . | . . . . Rammed . | . . . . Targets Rammed . | . . . . Kicked . | . . . . Crushed . | . . . . Highest Temperature 530 | 65 185 530 165 Average Temperature 93 | 26 71 216 51 Received Heat Transfer 336 | . 6 66 264 Effects 7 | . . 7 . Shutdowns 1 | . . 1 . Interference 3 | . . 3 . Matter Decay 1 | . . 1 . Short Circuit 1 | . . 1 . Damage (major) 1 | . . 1 . Siege Activations . | . . . . Martial Activations . | . . . . Shielding Activations . | . . . . Robots Disrupted . | . . . . Combat Hostiles . | . . . . Robots Corrupted . | . . . . Combat Hostiles . | . . . . Parts Fried . | . . . . Impact Corruptions . | . . . . Robots Melted . | . . . . Combat Hostiles . | . . . . Parts Melted 7 | 3 1 . 3 Heat Transferred 5359 | 620 1113 740 2886 Parts Sabotaged . | . . . . Parts Stolen . | . . . . Parts Stripped . | . . . . Power Chain Reactions . | . . . . Alert | -11 -10 -10 -10 ------- Run | Yrd Mat Min Sub Maximum Alert Level . | . . . . Low Security (%) 100 | 100 100 100 . Level 1 . | . . . . Level 2 . | . . . . Level 3 . | . . . . Level 4 . | . . . . Level 5 . | . . . . High Security . | . . . . Max Security . | . . . . Peak Influence 115 | 15 115 37 . Initial 4 | . . 4 . Average 19 | 2 42 4 . Influence Increases 632 | 35 260 102 235 Destroy 0b10 Robot/C 380 | . 120 80 180 Destroy 0b10 Robot/NC 65 | 35 30 . . Destroy Leader 70 | . 40 20 10 Allied During Kill 2 | . . 2 . Successful Hack 10 | . 10 . . Lose Combat Pursuer 105 | . 60 . 45 Influence Decreases 632 | 35 245 117 235 Entered New Map 11 | . . 11 . Time Decay 546 | 35 245 106 160 Lost Part 55 | . . . 55 Lost Ally 20 | . . . 20 Squads Dispatched . | . . . . Investigation . | . . . . Extermination . | . . . . Reinforcement . | . . . . Assault . | . . . . Garrison . | . . . . Intercept . | . . . . Searches Triggered . | . . . . Construction Impeded . | . . . . Haulers Reinforced . | . . . . Active Scanning Responses . | . . . . Cargo Convoy Interrupts . | . . . . Stealth | -11 -10 -10 -10 --------- Run | Yrd Mat Min Sub Distress Signals 3 | . 3 . . Communications Jammed . | . . . . Distress Signals . | . . . . Times Spotted 39 | . 15 4 20 Peak Tracking Total 6 | . 6 2 6 Tactical Retreats 4 | . 2 . 2 Traps | -11 -10 -10 -10 ------- Run | Yrd Mat Min Sub Traps Triggered 2 | . 1 . 1 Indirectly . | . . . . Trap Hack Attempts . | . . . . Triggered . | . . . . Disarmed . | . . . . Reprogrammed . | . . . . Reused . | . . . . Traps Extracted . | . . . . Installed . | . . . . Triggered . | . . . . Machines | -11 -10 -10 -10 ---------- Run | Yrd Mat Min Sub Machines Disabled 1 | . . . 1 Max in Single Turn 1 | . . . 1 Machines Repaired . | . . . . Machines Dismantled . | . . . . Machines Sabotaged . | . . . . Overloaded Fab Kills . | . . . . Hacking | -11 -10 -10 -10 --------- Run | Yrd Mat Min Sub Machines Accessed 4 | . 3 . 1 Terminals 2 | . 2 . . Fabricators . | . . . . Repair Stations . | . . . . Recycling Units 1 | . 1 . . Scanalyzers . | . . . . Garrison Access . | . . . . Total Hacks 8 | . 4 . 4 Successful 7 | . 3 . 4 Failed 1 | . 1 . . Catastrophic . | . . . . Database Lockouts . | . . . . Manual . | . . . . Terminals 2 | . 2 . . Fabricators . | . . . . Repair Stations . | . . . . Recycling Units 2 | . 2 . . Scanalyzers . | . . . . Garrison Access . | . . . . Terminal Hacks 6 | . 2 . 4 Record 4 | . . . 4 Robot Analysis 1 | . 1 . . Prototype ID Bank 1 | . 1 . . Fabricator Hacks . | . . . . Repair Station Hacks . | . . . . Recycling Unit Hacks 1 | . 1 . . Retrieve Components 1 | . 1 . . Scanalyzer . | . . . . Garrison Access Hacks . | . . . . Unauthorized Hacks . | . . . . Terminals . | . . . . Fabricators . | . . . . Repair Stations . | . . . . Recycling Units . | . . . . Scanalyzers . | . . . . Garrison Access . | . . . . Data Cores Recovered . | . . . . Used . | . . . . Hacking Detections 2 | . 2 . . Full Trace Events . | . . . . Feedback Events . | . . . . Feedback Blocked . | . . . . Robot Schematics Acquired . | . . . . Robots Built . | . . . . Authchips . | . . . . Time . | . . . . Total Robot Build Rating . | . . . . Part Schematics Acquired . | . . . . Parts Built . | . . . . Authchips . | . . . . Time . | . . . . Total Part Build Rating . | . . . . Part Studies Acquired . | . . . . Parts Repaired . | . . . . Time . | . . . . Parts Recycled . | . . . . Recycled Matter . | . . . . Retrieved Matter . | . . . . Retrieved Components 9 | . 9 . . Parts Scanalyzed . | . . . . Part Schematics Acquired . | . . . . Parts Damaged . | . . . . Bothacking | -11 -10 -10 -10 ------------ Run | Yrd Mat Min Sub Used RIF Installer . | . . . . Robots Hacked . | . . . . Non-combat . | . . . . Combat . | . . . . Robot Hacks Applied . | . . . . Relay Couplers Released . | . . . . Fabnet Peak Effective % . | . . . . Robots Rewired . | . . . . Allies Hacked . | . . . . Hacks Repelled . | . . . . Allies | -11 -10 -10 -10 -------- Run | Yrd Mat Min Sub Total Allies 3 | . . 3 . Largest Group 3 | . . 3 3 Highest-Rated Group 40 | . . 40 40 Highest-Rated Ally 16 | . . 16 16 Total Orders . | . . . . Ally Attacks 30 | . . . 30 Total Damage 156 | . . . 156 Kills 3 | . . . 3 Allies Corrupted . | . . . . Allies Melted . | . . . . Intel | -11 -10 -10 -10 ------- Run | Yrd Mat Min Sub Active Infowar (turns) . | . . . . Robot Analysis Total 1 | . 1 . . Derelict Logs Recovered 2 | . . 1 1 Drone Launches . | . . . . Drone Recoveries . | . . . . Exploration | -11 -10 -10 -10 ------------- Run | Yrd Mat Min Sub Turns Passed 1964 | 121 436 519 888 Spaces Moved 2744 | 68 806 662 1208 Core 48 | 48 . . . Treads . | . . . . Legs . | . . . . Wheels 87 | 20 67 . . Hover . | . . . . Flight 2609 | . 739 662 1208 Fastest Speed 34 | 50 34 34 34 Average Speed 39 | 58 39 35 41 Slowest Speed 130 | 80 130 117 117 Overloaded Moves . | . . . . Propulsion Burnouts . | . . . . Robots Hopped 2 | . . 2 . Potential Cave-ins . | . . . . Cave-ins Triggered . | . . . . Exploration Rate (%) 68 | 2 100 102 70 Regions Visited 3 Branch Regions 2 Pre-discovered Areas 3 | . . . 3 Known Exits Taken 3 | 1 1 1 . Unknown Exits Taken . | . . . . Scrap Searched 3 | . . . 3 Spaces Dug . | . . . . Terrain Destroyed . | . . . . Melee . | . . . . Projectile . | . . . . AOE . | . . . . Terrain Rammed . | . . . . Walls Destroyed . | . . . . Machines Disabled . | . . . . Actions | -11 -10 -10 -10 --------- Run | Yrd Mat Min Sub Total 3407 | 124 888 924 1471 Wait 469 | 30 17 245 177 Move 2737 | 67 805 657 1208 Hop 2 | . . 2 . Pick Up 31 | 9 17 1 4 Fast Attach 2 | . 2 . . Attach 13 | 6 2 1 4 Detach 2 | . 2 . . Swap 19 | . 8 2 9 Drop 20 | . 13 3 4 Fire 112 | 12 22 13 65 Melee . | . . . . Ram . | . . . . Kick . | . . . . Crush . | . . . . Escape Stasis . | . . . . Rewire . | . . . . Trap . | . . . . Miscellaneous . | . . . . Route ------- -11/Scrapyard -10/Materials (discovered 6 exits: *Mat x3 / *Min x2 / *Sub) -10/Mines (discovered 3 exits: *Mat x2 / *Sub) -10/Subcaves (discovered 1 exit: *Rec) History --------- Turn | Location | Event 15 | -11/Scrapyard | Identified exit to Materials 15 | -11/Scrapyard | Discovered exit to Materials (range 14) 122 | -11/Scrapyard | Entered Materials 122 | -10/Materials | Evolved 1 slot: Propulsion x1 313 | -10/Materials | Identified exit to Materials 313 | -10/Materials | Discovered exit to Materials (range 16) 363 | -10/Materials | Build established: Hacker-Mutant 388 | -10/Materials | Identified exit to Mines 388 | -10/Materials | Discovered exit to Mines (range 16) 419 | -10/Materials | Discovered exit to Materials (range 15) 481 | -10/Materials | Identified exit to Subcaves 481 | -10/Materials | Discovered exit to Subcaves (range 11) 486 | -10/Materials | Discovered exit to Materials (range 16) 541 | -10/Materials | Discovered exit to Mines (range 15) 558 | -10/Materials | Entered Mines 570 | -10/Mines | Assisted by bots powering up and referring to "LRC-V3" 616 | -10/Mines | Learned Materials emergency access door positions 695 | -10/Mines | Discovered exit to Materials (range 11) 758 | -10/Mines | A weapon hastily lodged in a ceiling crevice suddenly fell to the ground 782 | -10/Mines | Discovered exit to Materials (range 3) 1012 | -10/Mines | Discovered exit to Subcaves (range 6) 1077 | -10/Mines | Entered Subcaves 1077 | -10/Subcaves | Accompanied by 3 allies 1104 | -10/Subcaves | Shifting Twisted Machinery released Battle Rifle 1129 | -10/Subcaves | Visited Clippyterm 1130 | -10/Subcaves | Learned location of Extension (-6) 1147 | -10/Subcaves | Learned location of Zion (-6) 1147 | -10/Subcaves | Met a Zionite searching for "candidates" 1474 | -10/Subcaves | Core integrity fell below 50% 1684 | -10/Subcaves | Identified exit to Recycling 1684 | -10/Subcaves | Discovered exit to Recycling (range 10) 1764 | -10/Subcaves | Core integrity fell below 20% 1813 | -10/Subcaves | Lost 5 parts (1p1n1u2w) 1937 | -10/Subcaves | Shifting Twisted Machinery released Spk. Treads 1965 | -10/Subcaves | Destroyed by PJ-R4G(R) with Subdweller Machine Gun Last Messages --------------- 01755_ Flight Unit destroyed. 01768_ Sub. Optics melted. 01768_ Sub. Monowheel melted. 01768_ HM-7GK(R) destroyed. 01768_ Switching to secondary target: X1-XI1(R). 01777_ X1-XI1(R) affixes Scrap Shield Fragment to Scrap Shield. 01782_ Particle Gun destroyed. 01789_ Sub. Optics melted. 01789_ X1-XI1(R) destroyed. 01792_ Acquired 42 matter. 01931_ Acquired derelict log, extracted data. World map confirmed: -6/Zion. Spk. Treads falls loose from the Twisted Machinery. 01951_ RD-SZJ(R) suffers critical hit (Destroy). 01953_ Flight Unit destroyed. 01955_ RD-SZJ(R) IFF system glitched. 01956_ Flight Unit destroyed. 01960_ RD-SZJ(R) knocked back. Map ----- +----------------------------------------------------+ | ######??????## ????# ## #???????????? | | # # ??## #?????## #?# #???????????? | | ##### #??????###### # #???????????? | | ########## ###???????????? | | ## ## #????????????? | | #### ## #????????????? | | ########## ### ##????????????? | | ## #???###?# #?????????????? | | ##???????# ###### ##?????????????? | | # ###?????#### #????#### #?????????????? | | ## # #????????# ##???????# #?????????????? | | ?# ##????##### ###???????? ##?????????????? | | ?## #???## " ##?????????? ??????????????? | | ??## ##???#"" ""##??????????# ###?????????????? | | ??# #????#"" ""##??????????##???????????????? | | ??## ##???### " ##??????????????????????????? | | ???#[" ##????#####" " #??????????????????????????? | | ???## " #?????#??### ##??????????????????????????? | | ??## #??#### #### #???????????????????????????? | | ?## #?#"## #???????????????????????????? | | ?# ### """ #???????????????????????????? | | ?# ## ""# #???????????????????????????? | | ?# "### #####?###?? #???????????????? | | ?# ##???##"" # ##% # "#???????????????? | | ## ##????# "" = " " #???????????????? | | # ##????## """ @ R R #??????????????? | | # """" #?????## #### ## "#??????????????? | | # """ "##?????# #???##??? "#?????????????? | | ## ##????## ##??????????? #????????????? | | ?## #????? #??????????????????????????? | | ??## ## #???## #??????????????????????????? | | ???# ##?### #?? ??????????????????????????? | | ???## ##?????? #?? ??????????????????????????? | | ????# #????????? #??????????????????????????? | | ???## ##???????????###???????????????????????????? | | ???# #?????????????????????????????????????????? | | ???## ##?????????????????????????????????????????? | | ???# #?????????????????????????????????????????? | | ???# #?????????????????????????????????????????? | | ???# ##?????????????????????????????????????????? | | ???# #??????????????????????????????????????????? | | ???# #??????????????????????????????????????????? | | ???# ##?????????????????????????????????????????? | | ???## #?????????????????????????????????????????? | | ???# #?????????????????????????????????????????? | | ???## #?????????????????????????????????????????? | | ???#% ##?????????????????????????????????????????? | | ???#*&###????????????????????????????????????????? | | #####%& ##???????????????????????????????????????? | | # #&& #???????????????????????????????????????? | +----------------------------------------------------+ Best States ------------- Heat Dissipation 25 Energy Generation 10 Energy Capacity 250 Matter Stores 300 Matter Capacity 300 Sight Range 16 Terrain Scan Density 10 Additional Mass Support 6 Resistance: KI 35 Resistance: TH 35 Resistance: EX 35 Resistance: EM 35 Resistance: I 35 Resistance: S 35 Resistance: P 35 Evasion (%) 63 Targeting Accuracy 5 Offensive Hacking 20 Item Schematics ----------------- None Robot Schematics ------------------ None Fabricated ------------ Nothing Repaired ---------- Nothing Studied --------- None Alien Tech Used ----------------- None Achievements -------------- None Challenges ------------ None Game ------ Seed IntegratedServoReconstructor Manual? 0 Play Time 00:19:17 Cumulative 194.2 hours Start 2025.12.12 @ 12:20:45 End 2025.12.12 @ 12:37:30 Sessions 1 Manual Loads 0 Difficulty Explorer Special Mode None Game No. 282 Rogue 0 Adventurer 0 Explorer 282 Win Type - Total 0 Types 0/0/0/0/0/0/0/0/0/0 Lore% 71 Gallery% 67 Achievement% 53 Wizard Run 0 Options --------- Layout 1 ASCII 0 Keyboard 0 Movement Mouse Keybinds 0 Fullscreen 1 Font 24/Smallcaps Map View 50x35 Zoom Use 0% Tactical HUD 1 Map Filters NONE Filters NONE Steam 1 RUN: 79621982-27b1-4f35-aa36-28a5ee451a36